Cogmind - Beta 16.1 @@@ ROGUE MODE // 2026.04.05 @ 19:10:50 Player: Cernixs Result: Destroyed by EJ-WTM(R) with Subdweller Laser Performance ------------- Evolutions (0) 0 Regions Visited (3) 600 Robots Destroyed (27) 135 Value Destroyed (452) 452 Prototype IDs (1) 20 Alien Tech Used (0) 0 Bonus (46) 46 TOTAL SCORE: 1253 Bonus ------- Follower Combat Kills 46 Cogmind --------- Core Integrity 0/250 Matter 271/300 Energy 100/100 System Corruption 0% Temperature Cool (6) Movement Walking (190) Ox1 Location -10/Subcaves Parts ------- > --- POWER (1) -------- (None) > --- PROPULSION (2) --- Carbon-fiber Leg > --- UTILITY (2) ------ Signal Interpreter Sensor Drone Bay (20/20) > --- WEAPON (2) ------- Rocket Launcher Ripper > --- INVENTORY (5) ---- Ion Engine Improved Heat Sink Experimental Sensor Array Seismic Detector Peak State ------------ > --- POWER ------------ Light Angular Momentum Engine > --- PROPULSION ------- Wheel Wheel > --- UTILITY ---------- Signal Interpreter Sensor Drone Bay > --- WEAPON ----------- Rocket Launcher Ripper > --- INVENTORY -------- Ion Engine Light Ion Engine Experimental Sensor Array Seismic Detector Small Laser [Rating: 23] Favorites ----------- Power Light Ion Engine Engine Light Ion Engine Propulsion Wheel Leg Carbon-fiber Leg Wheel Wheel Utility Signal Interpreter Device Sensor Drone Bay Storage Medium Matter Pod Processor Signal Interpreter Protection Light Armor Plating Weapon Small Laser Energy Gun Small Laser Launcher Rocket Launcher Special Weapon Mining Laser Slashing Weapon Ripper Build | -11 -10 -10 -10 ------- Run | Yrd Mat Min Sub Slots Evolved . | . . . . Power . | . . . . Propulsion . | . . . . Utility . | . . . . Weapon . | . . . . Parts Attached 24 | 5 14 3 2 Power 4 | 1 2 . 1 Engine 4 | 1 2 . 1 Core . | . . . . Reactor . | . . . . Propulsion 7 | 2 4 . 1 Treads . | . . . . Leg 1 | . . . 1 Wheel 6 | 2 4 . . Hover . | . . . . Flight . | . . . . Utility 5 | . 4 1 . Device 2 | . 1 1 . Storage 1 | . 1 . . Processor 1 | . 1 . . Hackware . | . . . . Protection 1 | . 1 . . Artifact . | . . . . Weapon 8 | 2 4 2 . Energy Gun 4 | 2 2 . . Energy Cannon . | . . . . Ballistic Gun . | . . . . Ballistic Cannon . | . . . . Launcher 2 | . 1 1 . Special Weapon 1 | . 1 . . Impact Weapon . | . . . . Slashing Weapon 1 | . . 1 . Piercing Weapon . | . . . . Special Melee Weapon . | . . . . Unidentified Prototypes 1 | . . 1 . Parts Lost 11 | . 7 1 3 Power 2 | . 1 . 1 Propulsion 5 | . 3 . 2 Utility . | . . . . Weapon 4 | . 3 1 . Highest Loss Streak 3 | . 3 1 2 To Critical Strikes . | . . . . Average Backups 3 | . 3 4 4 Power . | . 1 1 1 Propulsion . | . . . . Utility 1 | . 1 2 2 Weapon . | . . 1 . Tool/Special . | . . . . Unused Backups 5 | . 2 . 3 Power 1 | . . . 1 Propulsion . | . . . . Utility 3 | . 1 . 2 Weapon 1 | . 1 . . Tool/Special . | . . . . Average Slot Usage (%) 91 | . 89 99 77 Engine 10 | . 9 14 7 Wheel 25 | . 27 28 12 Device 5 | . 3 4 14 Storage 3 | . 7 . . Processor 12 | . 10 14 14 Protection 6 | . 5 9 . Energy Gun 8 | . 17 1 . Launcher 10 | . 6 11 14 Special Weapon 1 | . . 2 . Slashing Weapon 7 | . . 11 14 Peak Build Rating 23 | 5 7 19 23 Average Rating 10 | 3 6 13 19 On Entrance 7 | . 5 7 19 Avg Prop Armor Cover (%) . | . . . . Naked Turns . | . . . . Heaviest Build 30 | 6 11 24 30 Greatest Support 26 | 20 26 20 20 Greatest Overweight (x) 6 | . 2 1 6 Average Overweight (x) . | . . . 2 Largest Inventory Capacity 5 | 5 5 5 5 Average Capacity 5 | 5 5 5 5 Most Carried 5 | 3 5 5 5 Average Carried 3 | . 3 4 4 Final Capacity 5 | 5 5 5 5 Final Carried 4 | 3 4 4 4 Class Distribution -------------------- 98% | Mutant Dominant Class ---------------- Mutant | -10/Materials Mutant | -10/Mines Mutant | -10/Subcaves Resources | -11 -10 -10 -10 ----------- Run | Yrd Mat Min Sub Matter Collected 624 | 250 186 96 92 Remotely . | . . . . Salvage Created 385 | 47 267 67 4 Parts 50 | 3 27 19 1 Haulers Intercepted . | . . . . Recyclers Shooed . | . . . . Parts Field Recycled . | . . . . Retrieved Matter . | . . . . Parts Self-Destructed 20 | . . . 20 Prevented . | . . . . Parts Restored . | . . . . Kills | -11 -10 -10 -10 ------- Run | Yrd Mat Min Sub Combat Hostiles Destroyed 21 | 1 11 9 . Melee 1 | . . 1 . Guns 6 | 1 5 . . AOE 14 | . 6 8 . Classes Destroyed 6 | 1 3 1 1 Worker 1 | . . 1 . Builder 2 | . 2 . . Turret 1 | . . . 1 Watcher 2 | . 2 . . Swarmer 17 | . 8 9 . Grunt 4 | 1 3 . . Best Kill Streak 5 | 1 5 4 1 Combat Bots Only 5 | 1 5 3 . Max Kills in Single Turn 3 | 1 2 3 1 Gunslinging . | . . . . Exploded 3 | . 2 3 . Melee 1 | . . 1 . Uniques/NPCs Destroyed . | . . . . Combat | -11 -10 -10 -10 -------- Run | Yrd Mat Min Sub Hostile Shots Fired 122 | 4 71 10 37 Missed 46 | 1 24 6 15 Hits 76 | 3 47 4 22 Projectile 76 | 3 47 4 22 Damage Taken 999 | 35 541 105 318 Core 256 | . 109 10 137 Absorbed by Shields . | . . . . Core Remaining (%) 100 | 100 . . . Volleys Fired 51 | 3 39 6 3 Largest 2 | 2 2 1 1 Hottest 80 | 80 80 33 33 Shots Fired 79 | 6 64 6 3 Gun 58 | 6 52 . . Cannon . | . . . . Launcher 21 | . 12 6 3 Special . | . . . . Kinetic . | . . . . Thermal 47 | 3 44 . . Explosive 21 | . 12 6 3 Electromagnetic 11 | 3 8 . . Robot Hit Streak 6 | 2 6 2 2 Robot Miss Streak 5 | 1 5 2 1 Penetration Max . | . . . . Secondary Targets 1 | . 1 . . Max Gunslinging Chain 1 | . 1 . . Shots Hit Robots 43 | 4 34 3 2 Core Hits 37 | 2 21 10 4 Critical Kills . | . . . . Critical Parts Destroyed . | . . . . Critical Strikes 1 | . 1 . . Corrupt 1 | . 1 . . Melee Attacks 5 | . . 3 2 Impact . | . . . . Slashing 5 | . . 3 2 Piercing . | . . . . Sneak Attacks . | . . . . Combat Hostiles . | . . . . Follow-up Attacks . | . . . . Damage Inflicted 1533 | 49 885 533 66 Guns 328 | 49 279 . . Cannons . | . . . . Explosions 1170 | . 606 498 66 Melee 35 | . . 35 . Ramming . | . . . . Kinetic . | . . . . Thermal 303 | 22 281 . . Explosive 1134 | . 570 498 66 Electromagnetic 61 | 27 34 . . Impact . | . . . . Slashing 35 | . . 35 . Piercing . | . . . . Highest Corruption . | . . . . Average Corruption . | . . . . Corruption Purged . | . . . . Corruption Blocked . | . . . . Overload Shots . | . . . . Overflow Damage 144 | . 51 75 18 Projectiles . | . . . . Explosions 129 | . 51 60 18 Melee 15 | . . 15 . Knockbacks . | . . . . Impact . | . . . . Kinetic . | . . . . Secondary . | . . . . Self-Inflicted Damage 147 | . 26 72 49 Shots 5 | . 1 3 1 Rammed . | . . . . Targets Rammed . | . . . . Kicked . | . . . . Crushed . | . . . . Highest Temperature 96 | 52 96 . . Average Temperature 30 | 30 30 . . Received Heat Transfer 288 | 18 186 . 84 Siege Activations . | . . . . Martial Activations . | . . . . Shielding Activations . | . . . . Robots Disrupted . | . . . . Combat Hostiles . | . . . . Robots Corrupted . | . . . . Combat Hostiles . | . . . . Parts Fried . | . . . . Impact Corruptions . | . . . . Robots Melted . | . . . . Combat Hostiles . | . . . . Parts Melted . | . . . . Heat Transferred 650 | 50 600 . . Parts Sabotaged . | . . . . Parts Stolen . | . . . . Parts Stripped . | . . . . Power Chain Reactions 1 | . 1 . . Alert | -11 -10 -10 -10 ------- Run | Yrd Mat Min Sub Maximum Alert Level 1 | . . 1 . Low Security (%) 96 | 100 100 91 . Level 1 3 | . . 8 . Level 2 . | . . . . Level 3 . | . . . . Level 4 . | . . . . Level 5 . | . . . . High Security . | . . . . Max Security . | . . . . Peak Influence 223 | 20 183 223 . Initial 6 | . 6 . . Average 70 | 3 42 105 . Influence Increases 936 | 20 408 376 132 Destroy 0b10 Robot/C 520 | 20 220 240 40 Destroy 0b10 Robot/NC 25 | . 20 5 . Destroy Leader 84 | . 44 40 . Allied During Kill 26 | . . 24 2 Successful Hack 5 | . . 5 . Disable Machine 90 | . 75 15 . Destroy Structure 96 | . 49 47 . Lose Combat Pursuer 90 | . . . 90 Influence Decreases 916 | 10 418 281 207 Entered New Map 54 | . 4 . 50 Time Decay 572 | 10 194 271 97 Lost Part 100 | . 70 10 20 Lost Ally 40 | . . . 40 Purge Threat 150 | . 150 . . Squads Dispatched . | . . . . Investigation . | . . . . Extermination . | . . . . Reinforcement . | . . . . Assault . | . . . . Garrison . | . . . . Intercept . | . . . . Searches Triggered . | . . . . Construction Impeded . | . . . . Haulers Reinforced . | . . . . Active Scanning Responses . | . . . . Cargo Convoy Interrupts . | . . . . Stealth | -11 -10 -10 -10 --------- Run | Yrd Mat Min Sub Distress Signals . | . . . . Communications Jammed . | . . . . Distress Signals . | . . . . Times Spotted 44 | 1 20 8 15 Peak Tracking Total 6 | 1 6 3 5 Tactical Retreats 2 | . . . 2 Traps | -11 -10 -10 -10 ------- Run | Yrd Mat Min Sub Traps Triggered . | . . . . Indirectly . | . . . . Trap Hack Attempts . | . . . . Triggered . | . . . . Disarmed 2 | . 2 . . Reprogrammed . | . . . . Reused . | . . . . Traps Extracted . | . . . . Installed . | . . . . Triggered . | . . . . Machines | -11 -10 -10 -10 ---------- Run | Yrd Mat Min Sub Machines Disabled 8 | . 5 1 2 Max in Single Turn 3 | . 3 1 2 Machines Repaired . | . . . . Machines Dismantled . | . . . . Machines Sabotaged . | . . . . Overloaded Fab Kills . | . . . . Hacking | -11 -10 -10 -10 --------- Run | Yrd Mat Min Sub Machines Accessed 8 | . 6 2 . Terminals 7 | . 6 1 . Fabricators . | . . . . Repair Stations . | . . . . Recycling Units . | . . . . Scanalyzers . | . . . . Garrison Access . | . . . . Total Hacks 27 | . 23 4 . Successful 13 | . 11 2 . Failed 14 | . 12 2 . Catastrophic 4 | . 4 . . Database Lockouts . | . . . . Manual 6 | . 6 . . Terminals 26 | . 23 3 . Fabricators . | . . . . Repair Stations . | . . . . Recycling Units . | . . . . Scanalyzers . | . . . . Garrison Access . | . . . . Terminal Hacks 13 | . 11 2 . Record 1 | . 1 . . Open Door 1 | . . 1 . Emergency Access Points 2 | . 2 . . Alert Level 1 | . 1 . . Unreport Threat 1 | . 1 . . Locate Traps 1 | . 1 . . Disarm Traps 1 | . 1 . . Dispatch Records 1 | . 1 . . Maintenance Status 1 | . 1 . . Hauler Manifests 1 | . 1 . . Zone Layout 2 | . 1 1 . Fabricator Hacks . | . . . . Repair Station Hacks . | . . . . Recycling Unit Hacks . | . . . . Scanalyzer . | . . . . Garrison Access Hacks . | . . . . Unauthorized Hacks . | . . . . Terminals . | . . . . Fabricators . | . . . . Repair Stations . | . . . . Recycling Units . | . . . . Scanalyzers . | . . . . Garrison Access . | . . . . Data Cores Recovered . | . . . . Used . | . . . . Hacking Detections 7 | . 6 1 . Full Trace Events . | . . . . Feedback Events . | . . . . Feedback Blocked . | . . . . Robot Schematics Acquired . | . . . . Robots Built . | . . . . Authchips . | . . . . Time . | . . . . Total Robot Build Rating . | . . . . Part Schematics Acquired . | . . . . Parts Built . | . . . . Authchips . | . . . . Time . | . . . . Total Part Build Rating . | . . . . Part Studies Acquired . | . . . . Parts Repaired . | . . . . Time . | . . . . Parts Recycled . | . . . . Recycled Matter . | . . . . Retrieved Matter . | . . . . Retrieved Components . | . . . . Parts Scanalyzed . | . . . . Part Schematics Acquired . | . . . . Parts Damaged . | . . . . Bothacking | -11 -10 -10 -10 ------------ Run | Yrd Mat Min Sub Used RIF Installer . | . . . . Robots Hacked . | . . . . Non-combat . | . . . . Combat . | . . . . Robot Hacks Applied . | . . . . Relay Couplers Released . | . . . . Fabnet Peak Effective % . | . . . . Robots Rewired . | . . . . Allies Hacked . | . . . . Hacks Repelled . | . . . . Allies | -11 -10 -10 -10 -------- Run | Yrd Mat Min Sub Total Allies 2 | . . 2 . Largest Group 2 | . . 2 1 Highest-Rated Group 46 | . . 46 15 Highest-Rated Ally 31 | . . 31 15 Total Orders 11 | . . 9 2 FOLLOW 1 | . . 1 . EXPLORE 6 | . . 4 2 RETURN 4 | . . 4 . Ally Attacks 16 | . . 15 1 Total Damage 169 | . . 148 21 Kills 4 | . . 3 1 Allies Corrupted . | . . . . Allies Melted 1 | . . . 1 Intel | -11 -10 -10 -10 ------- Run | Yrd Mat Min Sub Active Infowar (turns) 133 | . 133 . . Seismic 133 | . 133 . . Robot Analysis Total . | . . . . Derelict Logs Recovered 4 | . . 2 2 Drone Launches 6 | . . 4 2 Drone Recoveries 6 | . . 4 2 Exploration | -11 -10 -10 -10 ------------- Run | Yrd Mat Min Sub Turns Passed 1519 | 64 624 613 218 Spaces Moved 1352 | 59 574 602 117 Core 46 | 17 2 . 27 Treads . | . . . . Legs 3 | . . . 3 Wheels 1303 | 42 572 602 87 Hover . | . . . . Flight . | . . . . Fastest Speed 50 | 50 80 80 95 Average Speed 88 | 71 81 84 158 Slowest Speed 350 | 80 150 95 350 Overloaded Moves . | . . . . Propulsion Burnouts . | . . . . Robots Hopped . | . . . . Potential Cave-ins . | . . . . Cave-ins Triggered . | . . . . Exploration Rate (%) 50 | 5 91 97 9 Regions Visited 3 Branch Regions 2 Pre-discovered Areas 1 | . . . 1 Known Exits Taken 2 | . 1 1 . Unknown Exits Taken 1 | 1 . . . Scrap Searched 1 | . . 1 . Spaces Dug . | . . . . Terrain Destroyed 147 | . 78 57 12 Melee . | . . . . Projectile . | . . . . AOE 147 | . 78 57 12 Terrain Rammed . | . . . . Walls Destroyed . | . . . . Machines Disabled . | . . . . Actions | -11 -10 -10 -10 --------- Run | Yrd Mat Min Sub Total 1584 | 74 667 699 144 Wait 111 | . 23 73 15 Move 1349 | 58 573 601 117 Hop . | . . . . Pick Up 30 | 8 13 6 3 Fast Attach . | . . . . Attach 18 | 5 10 2 1 Detach 1 | . 1 . . Swap 9 | . 5 3 1 Drop 10 | . 3 5 2 Fire 51 | 3 39 6 3 Melee 5 | . . 3 2 Ram . | . . . . Kick . | . . . . Crush . | . . . . Escape Stasis . | . . . . Rewire . | . . . . Trap . | . . . . Miscellaneous . | . . . . Route ------- -11/Scrapyard -10/Materials (discovered 6 exits: *Mat x3 / *Min x2 / *Sub) -10/Mines (discovered 3 exits: *Mat x2 / *Sub) -10/Subcaves (discovered 2 exits: *Mat / *Rec) History --------- Turn | Location | Event 2 | -11/Scrapyard | Met Revision 17 42 | -11/Scrapyard | Discovered new exit (range 8) 65 | -11/Scrapyard | Entered Materials 170 | -10/Materials | Discovered new exit (range 14) 207 | -10/Materials | Discovered new exit (range 12) 233 | -10/Materials | Identified exit to Materials 310 | -10/Materials | Build established: Mutant 323 | -10/Materials | Discovered exit to Materials (range 9) 375 | -10/Materials | Lost 3 parts (2n1w) 390 | -10/Materials | Discovered exit to Materials (range 5) 590 | -10/Materials | Discovered new exit (range 11) 597 | -10/Materials | Identified exit to Subcaves 625 | -10/Materials | Discovered new exit (range 8) 643 | -10/Materials | Identified exit to Mines 689 | -10/Materials | Entered Mines 689 | -10/Mines | Discovered exit to Materials (range 9) 758 | -10/Mines | Learned location of 1 exit from Materials 769 | -10/Mines | Received a Rocket Launcher from a helpful Derelict 796 | -10/Mines | A weapon hastily lodged in a ceiling crevice suddenly fell to the ground 832 | -10/Mines | Found DCF Scrap (14 items) 854 | -10/Mines | Learned Materials emergency access door positions 869 | -10/Mines | Discovered exit to Materials (range 8) 909 | -10/Mines | Found a damaged Exp. Sensor Array with a note attached 911 | -10/Mines | Found Prototype Device 1014 | -10/Mines | Discovered exit to Subcaves (range 6) 1090 | -10/Mines | Found the Drone Emporium 1096 | -10/Mines | Found Prototype Device 1103 | -10/Mines | Identified Sensor Drone Bay 1302 | -10/Mines | Entered Subcaves 1302 | -10/Subcaves | Accompanied by 2 allies 1303 | -10/Subcaves | Approached by a straggling Scientist 1322 | -10/Subcaves | Discovered new exit (range 32) 1350 | -10/Subcaves | Learned Materials emergency access door positions 1351 | -10/Subcaves | Learned Materials emergency access door positions 1360 | -10/Subcaves | Shifting Twisted Machinery released Battle Cannon 1371 | -10/Subcaves | Core integrity fell below 50% 1381 | -10/Subcaves | Discovered new exit (range 3) 1382 | -10/Subcaves | Identified exit to Materials 1445 | -10/Subcaves | Identified exit to Recycling 1446 | -10/Subcaves | Learned location of Zion (-7) 1446 | -10/Subcaves | Met a Zionite searching for "candidates" 1485 | -10/Subcaves | Ambushed by swarm of Subdwellers 1516 | -10/Subcaves | Core integrity fell below 20% 1520 | -10/Subcaves | Destroyed by EJ-WTM(R) with Subdweller Laser Last Messages --------------- EJ-WTM(R) emerges from the Twisted Machinery. BQ-0GN(g): "Sorry we're late! Had another grouchy Sub to deal with. Who's the new fellow?" KR-FYO(R) destroyed. HV Slug penetrates E6-ADI(R). MF-U3Q(h) suffers critical hit (Destroy). MF-U3Q(h) destroyed. PJ-Y0R(R) suffers critical hit (Burn). R7-OHO(R) suffers critical hit (Burn). PJ-Y0R(R) suffers critical hit (Burn). R7-OHO(R) destroyed. BQ-0GN(g) suffers critical hit (Meltdown). 5B-9XM(g) destroyed. PJ-Y0R(R) affixes Scrap Shield Fragment to Scrap Shield. Dropped Sml. Laser. Acquired Carbon-fiber Leg. PJ-Y0R(R) affixes Scrap Shield Fragment to Scrap Shield. Map ----- +----------------------------------------------------+ | ?????????????????????????########????????????????? | | ?????????????????????????# ## ###??????????????? | | ?????????????????????????# # ####???????????? | | ?????????????#####???????# ! ##??????#???? | | ????????# # # ######## #????" ##??? | | ????????# %% % ! # ##? " #?? | | ??? % * ### #? ]" ??? | | ??? # # ## ##?# #? " ???? | | ????#### ???##?####### #######??# #? " ????? | | ??????????????????????###????????# #?" """????? | | ?????????????????????????????????## ##"""""????? | | ????????????????????????????####### [!# ""#??????? | | ???????????????????????????## &%" """#??????? | | ??????????????????????????## &* ##??????? | | ??????????????????????????# ##?""""??? | | ??????????????????????????# ######"""""?? | | ??????????????????????????# ## ## """ ""?? | | ??????????????????????????# ### " ""# "??? | | ??????????????????????????# ## """#?????? | | ??????????????????????????# " "%#?????? | | ??????????????????????????# ## ### [&#?????? | | ??????????????????????????## ### %"?## !#?????? | | ???????????????????????????#####?# "## %##?????? | | ???????????????????????########### ## < %####???? | | ???????????????????????# # # #% " ####? | | ??????????????????????## @ % #? | | ??????????????????????# $ | | ??????????????????????# ![ ## #### | | ??????????????????????#[% ###### ###??? | | ??????????????????????##RR###?# ##?????? | | ???????????????????????#= R!#### ####?????? | | ??????????????????????##R!% " "#??????? | | ?????????????????????## =% &# #??????? | | ?????????????????????# *[% *! % #???????? # | | ????????????????????# ## %! "#????????? # | | ????????????????????# ##" = "#??????????# | | ????????????????????## ### = #??????????? | | ?????????????????????### ### >#####??????????? | | ??????????????????????? #?## ## "##????????????? | | ??????????????????????# ??#####"#?????????????? | | ?????????????????????? ???????##?????????????? | | ????????????????????? #??????????????????????? | | ???????????????????? ???????????????????????? | | ???????????????????? ???????????????????????? | | ??????????????????? ???????????????????????? | | ?????????????????? ???????????????????????? | | ???????????????????### ???????????????????????? | | ?????????????????????# ???????????????????????? | | ???????????????????????###???????????????????????? | | ?????????????????????????????????????????????????? | +----------------------------------------------------+ Best States ------------- Heat Dissipation 25 Energy Generation 18 Energy Capacity 250 Matter Stores 400 Matter Capacity 400 Sight Range 16 Terrain Scan Density 10 Armor Coverage 150 Evasion (%) 50 Item Schematics ----------------- None Robot Schematics ------------------ None Fabricated ------------ Nothing Repaired ---------- Nothing Studied --------- None Alien Tech Used ----------------- None Achievements -------------- DATA ERROR: Steam Global Achievement% Everything Is Under Control Overwhelming Challenges ------------ None Game ------ Seed SurveybotLightKatana Manual? 0 Play Time 00:26:06 Cumulative 1.4 hours Start 2026.04.05 @ 18:45:05 End 2026.04.05 @ 19:10:50 Sessions 3 Manual Loads 0 Difficulty Rogue Special Mode None Game No. 2 Rogue 2 Adventurer 0 Explorer 0 Win Type - Total 0 Types 0/0/0/0/0/0/0/0/0/0 Lore% 2 Gallery% 3 Achievement% 4 Wizard Run 0 Options --------- Layout 1 ASCII 0 Keyboard 0 Movement Numpad Keybinds 0 Fullscreen 1 Font 24/Smallcaps Map View 50x35 Zoom Use 0% Tactical HUD 0 Map Filters NONE Filters NONE Steam 1 RUN: b0968c59-3545-4489-9484-76f6ed390dea